[Event "36th National Sub Junior 2019"]
[Site "Tiruchengode"]
[Date "2019.07.15"]
[Round "9.2"]
[White "Poorna Sri M.K"]
[Black "Jyothsna L"]
[Result "0-1"]
[ECO "C10"]
[WhiteElo "1681"]
[BlackElo "1939"]
[Annotator "NA RC"]
[PlyCount "76"]
[EventDate "2019.07.09"]
[EventCountry "IND"]
[SourceTitle "playchess.com"]
[Source "ChessBase"]
[SourceQuality "1"]
[TimeControl "5400+30"]

1. e4 {[%emt 0:00:00]} e6 {[%emt 0:00:59]} 2. d4 {[%emt 0:00:03]} d5 {[%emt 0:00:01]} 3. Nc3 {[%emt 0:00:10]} h6 {[%emt 0:00:09]} 4. exd5 {[%emt 0:05:23]} exd5 {[%emt 0:00:33]} 5. Bd3 {[%emt 0:00:28]} Nc6 {[%emt 0:09:23]} 6. Be3 {[%emt 0:08:44]} a6 {[%emt 0:22:15]} 7. a3 {[%emt 0:07:43]} Nf6 {[%emt 0:10:50]} 8. h3 {[%emt 0:08:08]} Bd6 {[%emt 0:05:30]} 9. Nf3 {[%emt 0:07:03]} O-O {[%emt 0:07:15]} 10. O-O {[%emt 0:02:27]} Ne7 {[%emt 0:07:47]} 11. Ne2 $11 {[%emt 0:07:46]} Ng6 {[%emt 0:03:53]} 12. c4 {[%emt 0:11:57]} dxc4 {[%emt 0:02:17]} 13. Bxc4 {[%emt 0:00:33]} b5 {[%emt 0:00:23]} 14. Bd3 {[%emt 0:06:17]} Bb7 {[%emt 0:00:39]} 15. Bxg6 {[%emt 0:03:10]} Bxf3 {[%emt 0:04:50]} 16. Bc2 {[%emt 0:03:52]} Bb7 {[%emt 0:01:16]} 17. Nf4 {[%emt 0:01:50]} Qd7 {[%emt 0:07:49]} 18. f3 {[%emt 0:06:13]} Rfe8 {[%emt 0:03:00]} 19. Qd3 {[%emt 0:01:42]} Rad8 {[%emt 0:04:51]} 20. Nh5 {[%emt 0:08:35]} Nxh5 {[%emt 0:02:22]} 21. Qh7+ {[%emt 0:00:05]} Kf8 {[%emt 0:00:02]} 22. Bxh6 {[%emt 0:02:27]} Bh2+ {[%emt 0:02:22]} 23. Kh1 {[%emt 0:00:41]} Ng3+ {[%emt 0:00:51]} 24. Kxh2 {[%emt 0:00:05]} Nxf1+ {[%emt 0:00:08]} 25. Kh1 {[%emt 0:01:25]} Ng3+ {[%emt 0:00:38]} 26. Kh2 {[%emt 0:00:06]} Nf1+ {[%emt 0:00:27]} 27. Kh1 {[%emt 0:00:05]} Ng3+ {[%emt 0:01:41]} 28. Kh2 {[%emt 0:00:10]} Qxd4 {[%emt 0:00:42]} 29. Rd1 {[%emt 0:05:53]} Qf6 {[%emt 0:00:23]} 30. Be3 {[%emt 0:01:14]} Rxd1 {[%emt 0:00:26]} 31. Bc5+ {[%emt 0:00:32]} Rd6 {[%emt 0:00:15]} 32. Qh8+ {[%emt 0:00:39]} Ke7 {[%emt 0:00:08]} 33. Qh7 {[%emt 0:00:15]} Kd8 {[%emt 0:01:14]} 34. Bxd6 {[%emt 0:00:20]} Qxd6 {[%emt 0:00:10]} 35. Qh4+ {[%emt 0:00:10]} f6 {[%emt 0:00:14]} 36. Qxg3 {[%emt 0:00:31]} Qxg3+ {[%emt 0:00:02]} 37. Kxg3 {[%emt 0:00:05]} Re2 {[%emt 0:00:10]} 38. Bf5 {[%emt 0:00:28]} Rxb2 {[%emt 0:00:03]} 0-1

[Event "36th National Sub Junior 2019"]
[Site "Tiruchengode"]
[Date "2019.07.15"]
[Round "9.4"]
[White "Bristy Mukherjee"]
[Black "Arushi Kotwal"]
[Result "1-0"]
[ECO "C00"]
[WhiteElo "1862"]
[BlackElo "1744"]
[Annotator "NA RC"]
[PlyCount "113"]
[EventDate "2019.07.09"]
[EventCountry "IND"]
[SourceTitle "playchess.com"]
[Source "ChessBase"]
[SourceQuality "1"]
[TimeControl "5400+30"]

1. e4 {[%emt 0:00:00]} e6 {[%emt 0:00:00]} 2. d3 {[%emt 0:00:00]} d5 {[%emt 0:00:00]} 3. Nd2 {[%emt 0:00:00]} Nf6 {[%emt 0:00:00]} 4. Ngf3 {[%emt 0:00:04]} dxe4 {[%emt 0:01:35]} 5. dxe4 {[%emt 0:00:09]} Nc6 {[%emt 0:00:07]} 6. c3 {[%emt 0:03:32]} Bc5 {[%emt 0:03:25]} 7. h3 {[%emt 0:05:36]} a6 {[%emt 0:01:44]} (7... e5 $11 {keeps the balance.}) 8. Qc2 {[%emt 0:01:05]} h6 {[%emt 0:04:11]} 9. e5 {[%emt 0:06:53]} Nd5 {[%emt 0:03:49]} 10. Ne4 {[%emt 0:05:58]} Bb6 {[%emt 0:08:02]} 11. Ng3 {[%emt 0:08:31]} Nde7 {[%emt 0:11:19] [#]} ({Black should try} 11... O-O $14) 12. Nh5 $1 {[%emt 0:08:43]} Qd5 {[%emt 0:09:58]} 13. Bf4 {[%emt 0:11:50]} Kf8 {[%emt 0:03:01]} 14. Bd3 $18 {[%emt 0:04:40]} Bd7 {[%emt 0:10:58]} 15. Be4 {[%emt 0:02:07]} Qa5 {[%emt 0:10:07]} 16. b4 {[%emt 0:01:23]} Nxb4 {[%emt 0:01:16]} 17. cxb4 {[%emt 0:00:11]} Qxb4+ {[%emt 0:00:02]} 18. Bd2 {[%emt 0:00:43]} Qa3 {[%emt 0:01:48]} 19. Rb1 {[%emt 0:05:04]} Ba4 {[%emt 0:02:05]} 20. Qc4 {[%emt 0:03:16]} Bb5 {[%emt 0:02:18]} 21. Qb3 {[%emt 0:04:22]} Qc5 {[%emt 0:00:50]} 22. Nf4 {[%emt 0:15:43]} Qxf2+ {[%emt 0:01:01]} 23. Kd1 {[%emt 0:00:01]} Rd8 {[%emt 0:04:13]} 24. a4 {[%emt 0:02:39]} Be3 {[%emt 0:10:22]} 25. Rb2 {[%emt 0:05:10]} Bf1 {[%emt 0:02:07]} 26. Kc1 {[%emt 0:02:37]} Bxd2+ {[%emt 0:06:18]} 27. Rxd2 {[%emt 0:01:40]} Rxd2 {[%emt 0:00:23]} 28. Nxd2 {[%emt 0:00:01]} Qxf4 {[%emt 0:01:53]} 29. Rxf1 {[%emt 0:00:01]} Qxe5 {[%emt 0:00:05]} 30. Bxb7 {[%emt 0:01:14]} Nd5 {[%emt 0:01:17]} 31. Bxd5 {[%emt 0:00:31]} exd5 {[%emt 0:00:30]} 32. Qb8+ {[%emt 0:00:59]} Qe8 {[%emt 0:00:11]} 33. Qxc7 {[%emt 0:00:39]} Kg8 {[%emt 0:00:35]} 34. a5 {[%emt 0:00:41]} f6 {[%emt 0:00:47]} 35. Rf3 {[%emt 0:00:30]} Qe1+ {[%emt 0:00:26]} 36. Kc2 {[%emt 0:00:02]} Qe6 {[%emt 0:00:22]} 37. Rg3 {[%emt 0:00:22]} Qf5+ {[%emt 0:00:14]} 38. Kd1 {[%emt 0:00:08]} Qh5+ {[%emt 0:00:21]} 39. Kc1 {[%emt 0:00:17]} Qf7 {[%emt 0:00:15]} 40. Rc3 {[%emt 0:01:39]} h5 {[%emt 0:01:01]} 41. Qxf7+ {[%emt 0:00:43]} Kxf7 {[%emt 0:00:05]} 42. Rc6 {[%emt 0:00:04]} Ra8 {[%emt 0:00:24]} 43. Nb3 {[%emt 0:00:13]} Rb8 {[%emt 0:00:15]} 44. Kc2 {[%emt 0:00:30]} Ra8 {[%emt 0:00:29]} 45. Nc5 {[%emt 0:00:20]} Ke7 {[%emt 0:00:41]} 46. Kc3 {[%emt 0:00:21]} g5 {[%emt 0:00:42]} 47. Rxa6 {[%emt 0:01:21]} Rc8 {[%emt 0:00:43]} 48. Kd4 {[%emt 0:00:09]} f5 {[%emt 0:00:08]} 49. Rh6 {[%emt 0:00:17]} h4 {[%emt 0:00:21]} 50. a6 {[%emt 0:00:07]} g4 {[%emt 0:00:23]} 51. a7 {[%emt 0:00:15]} Ra8 {[%emt 0:00:19]} 52. hxg4 {[%emt 0:00:41]} fxg4 {[%emt 0:00:09]} 53. Rxh4 {[%emt 0:00:08]} g3 {[%emt 0:00:33]} 54. Rh6 {[%emt 0:00:50]} Rxa7 {[%emt 0:00:34]} 55. Rh7+ {[%emt 0:00:07]} Kd6 {[%emt 0:00:03]} 56. Rxa7 {[%emt 0:00:07]} Kc6 {[%emt 0:00:09]} 57. Rg7 {[%emt 0:00:06]} 1-0

[Event "36th National Sub Junior 2019"]
[Site "Tiruchengode"]
[Date "2019.07.15"]
[Round "9.5"]
[White "Nayanikaa Muralidharan"]
[Black "Varsha Ramesh"]
[Result "1-0"]
[ECO "E58"]
[WhiteElo "1475"]
[BlackElo "1814"]
[Annotator "NA RC"]
[PlyCount "97"]
[EventDate "2019.07.09"]
[EventCountry "IND"]
[SourceTitle "playchess.com"]
[Source "ChessBase"]
[SourceQuality "1"]
[TimeControl "5400+30"]

1. d4 {[%emt 0:01:10]} Nf6 {[%emt 0:00:00]} 2. c4 {[%emt 0:00:12]} e6 {[%emt 0:00:00]} 3. Nc3 {[%emt 0:00:10]} Bb4 {[%emt 0:00:00]} 4. e3 {[%emt 0:01:17]} O-O {[%emt 0:00:16]} 5. Bd3 {[%emt 0:00:05]} d5 {[%emt 0:00:11]} 6. Nf3 {[%emt 0:00:38]} c5 {[%emt 0:00:46]} 7. O-O {[%emt 0:00:18]} Nc6 {[%emt 0:01:50]} 8. a3 {[%emt 0:00:26]} Bxc3 {[%emt 0:00:14]} 9. bxc3 {[%emt 0:00:16]} Qe7 {[%emt 0:06:47]} 10. a4 {[%emt 0:01:59]} Rd8 {[%emt 0:02:24]} 11. Ba3 {[%emt 0:03:10]} dxc4 {[%emt 0:14:07]} (11... b6 $11 {remains equal.}) 12. Bxc4 {[%emt 0:12:35]} (12. Bxc5 $14 Qc7 13. Bxc4 $14 b6 14. Ba3) 12... Qc7 {[%emt 0:00:23]} (12... b6 $11) 13. Qe2 {[%emt 0:00:59]} Na5 {[%emt 0:17:16]} 14. Ba2 {[%emt 0:07:55]} b6 {[%emt 0:11:04]} 15. Ne5 {[%emt 0:06:13]} Bb7 {[%emt 0:04:55]} 16. Rac1 $11 {[%emt 0:04:21]} Nc6 {[%emt 0:01:46]} 17. f4 {[%emt 0:09:48]} Ne7 {[%emt 0:01:13]} 18. Bb1 {[%emt 0:08:00]} Be4 {[%emt 0:04:30]} 19. Bxe4 {[%emt 0:01:27]} Nxe4 {[%emt 0:00:02]} 20. g4 {[%emt 0:09:04]} Nc6 {[%emt 0:04:28]} 21. Qg2 {[%emt 0:05:49]} f5 {[%emt 0:05:15]} 22. gxf5 {[%emt 0:01:18]} exf5 {[%emt 0:00:03]} 23. Qa2+ {[%emt 0:00:07]} Kf8 {[%emt 0:00:51]} 24. Qe6 {[%emt 0:01:56]} Nxe5 {[%emt 0:01:51]} 25. Qxf5+ {[%emt 0:00:26]} Qf7 {[%emt 0:00:56]} 26. fxe5 {[%emt 0:00:18]} Qxf5 {[%emt 0:00:20]} 27. Rxf5+ {[%emt 0:00:05]} Ke7 {[%emt 0:00:08]} 28. c4 {[%emt 0:01:37]} Rf8 {[%emt 0:00:12]} 29. Rcf1 {[%emt 0:01:25]} Nd2 {[%emt 0:00:48]} 30. Rxf8 {[%emt 0:00:05]} Rxf8 {[%emt 0:00:06]} 31. Rxf8 {[%emt 0:00:03]} Kxf8 {[%emt 0:00:02]} 32. dxc5 {[%emt 0:00:07]} bxc5 {[%emt 0:00:35]} 33. Bxc5+ {[%emt 0:00:03]} Ke8 {[%emt 0:00:15]} 34. Bxa7 {[%emt 0:00:14]} Nxc4 {[%emt 0:00:08]} 35. Bd4 {[%emt 0:00:04]} Kd7 {[%emt 0:00:32]} 36. Kf2 {[%emt 0:00:08]} Kc6 {[%emt 0:01:26]} 37. Ke2 {[%emt 0:00:35]} g5 {[%emt 0:00:30]} 38. Kd3 {[%emt 0:00:21]} Na5 {[%emt 0:00:06]} 39. Ke4 {[%emt 0:00:08]} h5 {[%emt 0:00:53]} 40. Kf5 {[%emt 0:00:04]} g4 {[%emt 0:00:06]} 41. Kg5 {[%emt 0:00:03]} Nc4 {[%emt 0:00:18]} 42. Kxh5 {[%emt 0:00:06]} Kd5 {[%emt 0:00:34]} 43. Kxg4 {[%emt 0:00:06]} Nd2 {[%emt 0:00:14]} 44. h4 {[%emt 0:00:20]} Ne4 {[%emt 0:00:16]} 45. h5 {[%emt 0:00:03]} Nf2+ {[%emt 0:00:05]} 46. Kg5 {[%emt 0:00:04]} Ne4+ {[%emt 0:00:05]} 47. Kg6 {[%emt 0:00:04]} Ng3 {[%emt 0:00:26]} 48. h6 {[%emt 0:00:05]} Nf5 {[%emt 0:00:08]} 49. Kxf5 {[%emt 0:00:09]} 1-0

[Event "36th National Sub Junior 2019"]
[Site "Tiruchengode"]
[Date "2019.07.16"]
[Round "10.2"]
[White "Mrudul Dehankar"]
[Black "Bristy Mukherjee"]
[Result "1/2-1/2"]
[ECO "B09"]
[WhiteElo "2074"]
[BlackElo "1862"]
[Annotator "NA RC"]
[PlyCount "130"]
[EventDate "2019.07.09"]
[EventCountry "IND"]
[SourceTitle "playchess.com"]
[Source "ChessBase"]
[SourceQuality "1"]
[TimeControl "5400+30"]

1. e4 {[%emt 0:00:00]} d6 {[%emt 0:02:12]} 2. d4 {[%emt 0:00:00]} Nf6 {[%emt 0:00:07]} 3. Nc3 {[%emt 0:00:00]} g6 {[%emt 0:00:07]} 4. f4 {[%emt 0:00:16]} Bg7 {[%emt 0:00:19]} 5. Nf3 {[%emt 0:00:14]} O-O {[%emt 0:01:30]} 6. Bd3 {[%emt 0:00:29]} Na6 {[%emt 0:01:10]} 7. O-O {[%emt 0:00:53]} c5 {[%emt 0:00:19]} 8. d5 {[%emt 0:00:38]} Bg4 {[%emt 0:01:21]} 9. Be3 {[%emt 0:08:57]} Nc7 {[%emt 0:13:33]} 10. a4 {[%emt 0:03:59]} e6 {[%emt 0:11:28]} 11. dxe6 {[%emt 0:21:01]} fxe6 {[%emt 0:08:56]} 12. h3 {[%emt 0:04:39]} Bxf3 {[%emt 0:02:24]} 13. Qxf3 {[%emt 0:05:53]} b6 {[%emt 0:01:38]} 14. Bc4 {[%emt 0:05:41]} Kh8 {[%emt 0:05:45]} 15. Rad1 {[%emt 0:13:05]} Qe7 {[%emt 0:03:02]} 16. Nb5 {[%emt 0:10:46]} Nxb5 {[%emt 0:04:49]} 17. axb5 {[%emt 0:01:53]} Rad8 {[%emt 0:04:37]} 18. Rfe1 {[%emt 0:06:08]} Nh5 {[%emt 0:03:06]} 19. Qg4 {[%emt 0:01:48]} Bxb2 {[%emt 0:03:02]} 20. f5 {[%emt 0:03:21]} exf5 {[%emt 0:02:27]} 21. exf5 {[%emt 0:01:05]} Qg7 {[%emt 0:05:43]} 22. Bd3 {[%emt 0:03:47]} Rg8 {[%emt 0:11:40]} 23. fxg6 {[%emt 0:02:12]} hxg6 {[%emt 0:00:31]} 24. Bg5 {[%emt 0:01:13]} Rde8 {[%emt 0:02:17]} 25. Bc4 {[%emt 0:02:07]} Rgf8 {[%emt 0:01:48]} 26. Kh1 {[%emt 0:01:36]} Rxe1+ {[%emt 0:06:03]} 27. Rxe1 {[%emt 0:00:02]} Be5 {[%emt 0:00:11]} 28. Bd3 {[%emt 0:01:20]} Ng3+ {[%emt 0:00:51]} 29. Kg1 {[%emt 0:00:12]} Bd4+ {[%emt 0:01:04]} 30. Kh2 {[%emt 0:00:43]} Nf5 {[%emt 0:01:29]} 31. Bf4 {[%emt 0:00:52]} Be5 {[%emt 0:00:57]} 32. Bxe5 {[%emt 0:00:30]} dxe5 {[%emt 0:00:08]} 33. Bxf5 {[%emt 0:00:19]} Rxf5 {[%emt 0:00:48]} 34. Rd1 {[%emt 0:00:22]} Rf8 {[%emt 0:01:05]} 35. Rd6 {[%emt 0:00:49]} Rg8 {[%emt 0:00:31]} 36. Qh4+ {[%emt 0:00:31]} Qh7 {[%emt 0:00:01]} 37. Qf6+ {[%emt 0:00:13]} Qg7 {[%emt 0:00:01]} 38. Qe6 {[%emt 0:00:19]} Rf8 {[%emt 0:01:02]} 39. Rd7 {[%emt 0:01:01]} Qf6 {[%emt 0:00:02]} 40. Qxf6+ {[%emt 0:00:27]} Rxf6 {[%emt 0:00:01]} 41. Kg3 {[%emt 0:00:30]} Rf4 {[%emt 0:00:32]} 42. Rxa7 {[%emt 0:00:33]} Rb4 {[%emt 0:00:28]} 43. Rb7 {[%emt 0:00:29]} Rxb5 {[%emt 0:00:06]} 44. Kg4 {[%emt 0:00:06]} Rb2 {[%emt 0:00:35]} 45. Kg5 {[%emt 0:00:51]} Rxc2 {[%emt 0:00:17]} 46. g4 {[%emt 0:00:11]} Rd2 {[%emt 0:00:28]} 47. Rxb6 {[%emt 0:00:23]} Rd8 {[%emt 0:02:26]} 48. Kxg6 {[%emt 0:00:34]} Rc8 {[%emt 0:00:18]} 49. Kf5 {[%emt 0:00:53]} c4 {[%emt 0:00:05]} 50. Rb2 {[%emt 0:00:32]} c3 {[%emt 0:00:13]} 51. Rc2 {[%emt 0:00:02]} Rc5 {[%emt 0:00:04]} 52. Ke4 {[%emt 0:00:34]} Kg7 {[%emt 0:00:07]} 53. Kd3 {[%emt 0:00:28]} Rd5+ {[%emt 0:01:26]} 54. Kxc3 {[%emt 0:00:49]} Kg6 {[%emt 0:00:22]} 55. Rd2 {[%emt 0:00:31]} Ra5 {[%emt 0:00:50]} 56. Kc4 {[%emt 0:00:38]} Kg5 {[%emt 0:00:41]} 57. Rf2 {[%emt 0:00:27]} Ra3 {[%emt 0:00:50]} 58. Rf5+ {[%emt 0:00:20]} Kg6 {[%emt 0:00:27]} 59. Kd5 {[%emt 0:00:44]} Rxh3 {[%emt 0:00:22]} 60. Kxe5 {[%emt 0:00:10]} Rb3 {[%emt 0:00:40]} 61. Kf4 {[%emt 0:00:30]} Rb1 {[%emt 0:00:15]} 62. Ra5 {[%emt 0:00:16]} Rf1+ {[%emt 0:00:23]} 63. Kg3 {[%emt 0:00:07]} Rg1+ {[%emt 0:00:05]} 64. Kf3 {[%emt 0:00:08]} Rf1+ {[%emt 0:00:16]} 65. Kg2 {[%emt 0:00:06]} Rb1 {[%emt 0:00:08]} 1/2-1/2

[Event "36th National Sub Junior 2019"]
[Site "Tiruchengode"]
[Date "2019.07.16"]
[Round "10.3"]
[White "Jyothsna L"]
[Black "Bhagyashree Patil"]
[Result "1-0"]
[ECO "D18"]
[WhiteElo "1939"]
[BlackElo "1703"]
[Annotator "NA RC"]
[PlyCount "71"]
[EventDate "2019.07.09"]
[EventCountry "IND"]
[SourceTitle "playchess.com"]
[Source "ChessBase"]
[SourceQuality "1"]
[TimeControl "5400+30"]

1. d4 {[%emt 0:01:12]} d5 {[%emt 0:00:00]} 2. c4 {[%emt 0:00:02]} c6 {[%emt 0:00:00]} 3. Nc3 {[%emt 0:00:12]} Nf6 {[%emt 0:00:20]} 4. Nf3 {[%emt 0:00:06]} dxc4 {[%emt 0:00:18]} 5. a4 {[%emt 0:03:14]} Bf5 {[%emt 0:00:09]} 6. e3 {[%emt 0:02:18]} e6 {[%emt 0:01:06]} 7. Bxc4 {[%emt 0:00:45]} Bb4 {[%emt 0:00:19]} 8. O-O {[%emt 0:02:09]} Nbd7 {[%emt 0:00:21]} 9. Bd2 {[%emt 0:15:42]} Bg6 {[%emt 0:10:31]} 10. Be2 {[%emt 0:25:00]} Nd5 {[%emt 0:16:19]} 11. Qb3 {[%emt 0:06:04]} O-O {[%emt 0:07:37]} 12. Nxd5 {[%emt 0:09:26]} Bxd2 {[%emt 0:02:44]} 13. Nf4 {[%emt 0:03:04]} Ba5 {[%emt 0:04:26]} 14. Nxg6 {[%emt 0:05:34]} hxg6 {[%emt 0:00:08]} 15. Qxb7 {[%emt 0:00:40]} Rb8 {[%emt 0:07:20]} 16. Qxa7 {[%emt 0:12:24]} Rxb2 {[%emt 0:00:14]} 17. Bd3 {[%emt 0:00:46]} Rb3 {[%emt 0:18:36]} 18. Be4 {[%emt 0:01:49]} Nb8 {[%emt 0:05:56]} 19. Rab1 {[%emt 0:02:52]} Rb4 {[%emt 0:02:24]} 20. Rxb4 {[%emt 0:01:31]} Bxb4 {[%emt 0:00:02]} 21. Rb1 {[%emt 0:00:11]} Qd6 {[%emt 0:04:41]} 22. Qb6 {[%emt 0:01:24]} Bc3 {[%emt 0:00:28]} 23. Rb3 {[%emt 0:01:13]} f5 {[%emt 0:01:44]} 24. Bd3 {[%emt 0:00:38]} Nd7 {[%emt 0:00:14]} 25. Qa6 {[%emt 0:00:40]} Bb4 {[%emt 0:01:13]} 26. Qc4 {[%emt 0:00:21]} c5 {[%emt 0:02:09]} 27. Ng5 {[%emt 0:00:54]} Re8 {[%emt 0:01:51]} 28. Qa6 {[%emt 0:01:47]} Qxa6 {[%emt 0:01:54]} 29. Bxa6 {[%emt 0:00:02]} Nf8 {[%emt 0:01:02]} 30. Bc4 {[%emt 0:01:45]} Kh8 {[%emt 0:00:51]} 31. d5 {[%emt 0:00:30]} Nh7 {[%emt 0:02:26]} 32. Nf7+ {[%emt 0:00:29]} Kg8 {[%emt 0:00:05]} 33. dxe6 {[%emt 0:00:20]} Kf8 {[%emt 0:00:08]} 34. Ne5 {[%emt 0:00:16]} Ke7 {[%emt 0:00:24]} 35. Nxg6+ {[%emt 0:00:26]} Kf6 {[%emt 0:00:02]} 36. Nf4 {[%emt 0:02:14]} 1-0

[Event "36th National Sub Junior 2019"]
[Site "Tiruchengode"]
[Date "2019.07.16"]
[Round "10.5"]
[White "Tarunika P"]
[Black "Poorna Sri M.K"]
[Result "1/2-1/2"]
[ECO "C49"]
[WhiteElo "1561"]
[BlackElo "1681"]
[Annotator "NA RC"]
[PlyCount "79"]
[EventDate "2019.07.09"]
[EventCountry "IND"]
[SourceTitle "playchess.com"]
[Source "ChessBase"]
[SourceQuality "1"]
[TimeControl "5400+30"]

1. e4 {[%emt 0:00:00]} e5 {[%emt 0:00:00]} 2. Nf3 {[%emt 0:00:00]} Nc6 {[%emt 0:00:00]} 3. Nc3 {[%emt 0:00:00]} Nf6 {[%emt 0:00:02]} 4. Bb5 {[%emt 0:00:00]} Bb4 {[%emt 0:00:13]} 5. O-O {[%emt 0:00:19]} O-O {[%emt 0:00:11]} 6. d3 {[%emt 0:00:11]} d6 {[%emt 0:00:14]} 7. Bg5 {[%emt 0:00:08]} Bxc3 {[%emt 0:00:15]} 8. bxc3 {[%emt 0:00:16]} h6 {[%emt 0:01:05]} 9. Bh4 {[%emt 0:01:09]} a6 {[%emt 0:02:23]} 10. Ba4 {[%emt 0:00:25]} Qe7 {[%emt 0:00:43]} 11. Re1 {[%emt 0:00:42]} Nd8 {[%emt 0:00:43]} 12. d4 {[%emt 0:00:39]} Ne6 {[%emt 0:01:03]} 13. Bb3 {[%emt 0:04:09]} Nf4 {[%emt 0:03:35]} 14. Bg3 {[%emt 0:04:16]} N6h5 {[%emt 0:02:35]} 15. Nh4 {[%emt 0:07:52]} Qg5 {[%emt 0:07:13]} 16. Bc4 {[%emt 0:08:27]} Bg4 {[%emt 0:14:02]} 17. Nf3 {[%emt 0:01:17]} Qf6 {[%emt 0:02:05]} 18. Re3 {[%emt 0:04:54]} b5 {[%emt 0:19:42]} 19. Bf1 {[%emt 0:01:23]} c5 {[%emt 0:07:10]} 20. d5 {[%emt 0:00:42]} g5 {[%emt 0:01:30]} 21. h3 {[%emt 0:01:56]} Bd7 {[%emt 0:00:18]} 22. Nh2 {[%emt 0:01:03]} Qg6 {[%emt 0:02:30]} 23. Be2 {[%emt 0:11:02]} Nxg3 {[%emt 0:02:43]} 24. fxg3 {[%emt 0:00:45]} Nxe2+ {[%emt 0:00:08]} 25. Qxe2 {[%emt 0:02:18]} f5 {[%emt 0:00:47]} 26. g4 {[%emt 0:02:27]} fxg4 {[%emt 0:03:09]} 27. Nxg4 {[%emt 0:02:10]} Bxg4 {[%emt 0:03:15]} 28. Qxg4 {[%emt 0:00:33]} Rf4 {[%emt 0:00:36]} 29. Qd7 {[%emt 0:00:44]} Raf8 {[%emt 0:01:05]} 30. Re2 {[%emt 0:05:54]} Qf6 {[%emt 0:01:44]} 31. Kh2 {[%emt 0:01:34]} Rf1 {[%emt 0:07:15]} 32. Rxf1 {[%emt 0:01:19]} Qxf1 {[%emt 0:00:02]} 33. Qxd6 {[%emt 0:01:36]} Qxe2 {[%emt 0:15:02]} 34. Qg6+ {[%emt 0:00:07]} Kh8 {[%emt 0:00:06]} 35. Qxh6+ {[%emt 0:01:27]} Kg8 {[%emt 0:00:04]} 36. Qxg5+ {[%emt 0:07:50]} Kh7 {[%emt 0:02:12]} 37. Qe7+ {[%emt 0:00:26]} Kg8 {[%emt 0:00:01]} 38. Qg5+ {[%emt 0:00:10]} Kh7 {[%emt 0:00:05]} 39. Qe7+ {[%emt 0:00:31]} Kg8 {[%emt 0:00:05]} 40. Qg5+ {[%emt 0:00:07]} 1/2-1/2

[Event "36th National Sub Junior 2019"]
[Site "Tiruchengode"]
[Date "2019.07.17"]
[Round "11.2"]
[White "Bristy Mukherjee"]
[Black "Jyothsna L"]
[Result "1/2-1/2"]
[ECO "A08"]
[WhiteElo "1862"]
[BlackElo "1939"]
[Annotator "NA"]
[PlyCount "44"]
[EventDate "2019.07.09"]
[EventCountry "IND"]
[SourceTitle "playchess.com"]
[Source "ChessBase"]
[SourceQuality "1"]
[TimeControl "5400+30"]

1. e4 {[%emt 0:06:51]} e6 {[%emt 0:00:31]} 2. d3 {[%emt 0:03:22]} d5 {[%emt 0:00:03]} 3. Nd2 {[%emt 0:00:09]} c5 {[%emt 0:00:26]} 4. Ngf3 {[%emt 0:00:11]} Nf6 {[%emt 0:00:16]} 5. g3 {[%emt 0:00:06]} Nc6 {[%emt 0:00:15]} 6. Bg2 {[%emt 0:00:09]} g6 {[%emt 0:00:18]} 7. O-O {[%emt 0:01:02]} Bg7 {[%emt 0:00:09]} 8. c3 {[%emt 0:10:31]} O-O {[%emt 0:11:21]} 9. e5 {[%emt 0:05:12]} Nd7 {[%emt 0:00:05]} 10. d4 {[%emt 0:00:19]} b5 {[%emt 0:01:59]} 11. Re1 {[%emt 0:01:41]} b4 {[%emt 0:05:13]} 12. h4 {[%emt 0:04:38]} bxc3 {[%emt 0:05:03]} 13. bxc3 {[%emt 0:01:17]} Qa5 {[%emt 0:21:16]} 14. Re3 {[%emt 0:03:33]} Ba6 {[%emt 0:15:09]} 15. g4 $15 {[%emt 0:05:57]} ({White should try} 15. h5 $11) 15... Rfc8 {[%emt 0:18:29]} 16. h5 {[%emt 0:30:35]} Bh6 {[%emt 0:00:26]} 17. g5 {[%emt 0:00:11]} Bg7 {[%emt 0:00:14]} 18. Kh2 {[%emt 0:00:23]} Qd8 {[%emt 0:00:13]} 19. Kg1 {[%emt 0:00:05]} Qa5 {[%emt 0:00:02]} 20. Kh2 {[%emt 0:00:05]} Qd8 {[%emt 0:00:03]} 21. Kg1 {[%emt 0:00:03]} Qa5 {[%emt 0:00:08]} 22. Kh2 {[%emt 0:00:04]} Qd8 {[%emt 0:00:03]} 1/2-1/2